bitfinex-derivatives/quotes_BTCF0:USTF0_20251030
["timestamp","ask_amount","ask_price","bid_price","bid_amount"]
[1761816187757,0.03111305,110230.0,110220.0,1.27118954]
[1761816187960,0.03111305,110230.0,110220.0,1.10813647]
[1761816188861,0.03111305,110230.0,110220.0,0.9450834]
[1761816189060,0.05276305,110230.0,110220.0,0.8250834]
[1761816189257,0.05276305,110230.0,110220.0,0.98813647]
[1761816189462,0.05276305,110230.0,110220.0,1.11813647]
[1761816189661,0.03111305,110230.0,110220.0,1.11813647]
[1761816189861,0.03111305,110230.0,110220.0,0.80377647]
[1761816190062,0.03111305,110230.0,110220.0,1.11809647]
[1761816190950,0.03111305,110230.0,110220.0,1.29809647]
[1761816192653,0.02481969,110230.0,110220.0,1.29809647]
[1761816192964,0.003,110230.0,110220.0,1.29809647]
[1761816193166,0.0459,110230.0,110220.0,0.9450434]
[1761816193369,0.07403335,110230.0,110220.0,0.8250434]
[1761816193760,0.07403246,110230.0,110220.0,0.8250434]
[1761816193957,0.07403246,110230.0,110220.0,0.1499234]
[1761816194162,0.23708553,110230.0,110220.0,0.0592]
[1761816194355,0.23708553,110230.0,110220.0,0.37352]
[1761816195066,0.59788553,110230.0,110220.0,0.37352]
[1761816196161,0.68860073,110230.0,110220.0,0.37352]
[1761816196563,0.68860073,110230.0,110220.0,0.37348]
[1761816197569,0.68860073,110230.0,110220.0,0.4642034]
[1761816198274,0.68860073,110230.0,110220.0,0.37348]
[1761816198567,0.68860073,110230.0,110220.0,0.37352]
[1761816199572,0.69886073,110230.0,110220.0,0.001]
[1761816199876,0.69886073,110230.0,110220.0,0.04724]
[1761816200273,0.69886073,110230.0,110220.0,0.06117]
[1761816200470,0.68860073,110230.0,110220.0,0.06117]
[1761816200866,0.52554766,110230.0,110220.0,0.06117]
[1761816201072,0.68860073,110230.0,110220.0,0.06117]
[1761816201273,0.68860073,110230.0,110220.0,0.1518934]
[1761816202069,0.52554766,110230.0,110220.0,0.31494647]
[1761816202275,0.03113246,110230.0,110220.0,0.31494647]
[1761816202479,0.05230246,110230.0,110220.0,0.31494647]
[1761816202676,0.05230246,110230.0,110220.0,0.32810704]
[1761816202868,0.07368246,110230.0,110220.0,0.32810704]
[1761816203167,0.16439766,110230.0,110220.0,0.32810704]
[1761816203374,0.16439766,110230.0,110220.0,0.16505397]
[1761816206080,0.16439766,110230.0,110220.0,0.07433057]
[1761816206281,0.16439766,110230.0,110220.0,0.16505397]
[1761816207277,0.1581043,110230.0,110220.0,0.16505397]
[1761816207473,0.16439766,110230.0,110220.0,0.16505397]
[1761816208678,0.07368246,110230.0,110220.0,0.16505397]
[1761816208978,0.16439766,110230.0,110220.0,0.16505397]
[1761816210279,0.52519766,110230.0,110220.0,0.16505397]
[1761816210480,0.52519766,110230.0,110220.0,0.47933397]
[1761816210971,0.43448246,110230.0,110220.0,0.47933397]
[1761816211171,0.07368246,110230.0,110220.0,0.47933397]
[1761816211776,0.43448246,110230.0,110220.0,0.47933397]
[1761816212077,0.52519766,110230.0,110220.0,0.47933397]
[1761816212979,0.52519766,110230.0,110220.0,0.16505397]
[1761816213177,0.16439766,110230.0,110220.0,0.47933397]
[1761816213373,0.52519766,110230.0,110220.0,0.47933397]
[1761816213573,0.16439766,110230.0,110220.0,0.47933397]
[1761816214181,0.52519766,110230.0,110220.0,0.47933397]
[1761816214782,0.52519766,110230.0,110220.0,0.16505397]
[1761816214984,0.52519766,110230.0,110220.0,0.47933397]
[1761816216184,0.16439766,110230.0,110220.0,0.47933397]
[1761816216385,0.52519766,110230.0,110220.0,0.47933397]
[1761816216980,0.52519766,110230.0,110220.0,0.16505397]
[1761816217172,0.68825073,110230.0,110220.0,0.07433057]
[1761816217379,0.68825073,110230.0,110220.0,0.38861057]
[1761816218182,0.68825073,110230.0,110220.0,0.07433057]
[1761816218384,0.68825073,110230.0,110220.0,0.37545]
[1761816218578,0.68825073,110230.0,110220.0,0.06117]
[1761816218784,0.68825073,110230.0,110220.0,0.37545]
[1761816219483,1.00253073,110230.0,110220.0,0.001]
[1761816219784,1.60525073,110230.0,110220.0,0.001]
[1761816220175,0.1350334,110220.0,110210.0,0.05938]
[1761816220376,0.68701893,110220.0,110210.0,0.05938]
[1761816221783,0.1350416,110210.0,110200.0,0.5103941]
[1761816222083,0.14133496,110210.0,110200.0,0.5103941]
[1761816222584,0.14033496,110210.0,110200.0,0.5103941]
[1761816222989,0.14033496,110210.0,110200.0,0.5113941]
[1761816223180,0.14033496,110210.0,110200.0,0.5113999]
[1761816225277,0.14033496,110210.0,110200.0,0.42066]
[1761816225684,0.14033496,110210.0,110200.0,0.5113999]
[1761816225885,0.30338803,110210.0,110200.0,0.5113999]
[1761816226284,0.14033496,110210.0,110200.0,0.5113999]
[1761816227088,0.50113496,110210.0,110200.0,0.1505999]
[1761816227286,0.4948416,110210.0,110200.0,0.1505999]
[1761816227586,0.50113496,110210.0,110200.0,0.1505999]
[1761816230180,0.41140336,110210.0,110200.0,0.1505999]
[1761816230386,0.05060336,110210.0,110200.0,0.4405999]
[1761816230583,0.05060336,110210.0,110200.0,0.96445297]
[1761816230888,0.4958252,110230.0,110220.0,0.05913]
[1761816231187,0.83192662,110230.0,110220.0,0.05913]
[1761816231381,0.83821998,110230.0,110220.0,0.1498534]
[1761816231802,0.43318478,110230.0,110220.0,0.31290647]
[1761816231991,0.07238478,110230.0,110220.0,0.43290647]
[1761816232288,0.33641305,110230.0,110220.0,0.3602]
[1761816232586,0.69721305,110230.0,110220.0,0.04588]
[1761816232786,1.01553305,110230.0,110220.0,0.04688]
[1761816233278,1.01553305,110230.0,110220.0,0.02431]
[1761816233279,1.0155631,110230.0,110220.0,0.02431]
[1761816233676,1.0155631,110230.0,110220.0,0.001]
[1761816234388,1.0155631,110230.0,110220.0,0.02431]
[1761816235791,1.0155631,110230.0,110220.0,0.1370834]
[1761816236393,0.85247858,110230.0,110220.0,0.1370834]
[1761816236588,1.0053031,110230.0,110220.0,0.1497634]
[1761816236891,0.6445031,110230.0,110220.0,0.1497634]
[1761816237889,1.0053031,110230.0,110220.0,0.1497634]
[1761816239481,0.84221858,110230.0,110220.0,0.1497634]
[1761816239792,1.0053031,110230.0,110220.0,0.1497634]
[1761816240588,0.16709858,110230.0,110220.0,0.31284792]
[1761816240792,0.3301831,110230.0,110220.0,0.31284792]
[1761816240995,0.16709858,110230.0,110220.0,0.31284792]
[1761816241189,0.16080522,110230.0,110220.0,0.79021244]
[1761816241390,0.16080522,110230.0,110220.0,0.62712792]
[1761816241989,0.16080522,110230.0,110220.0,0.53640452]
[1761816242193,0.16080522,110230.0,110220.0,0.62712792]
[1761816242194,0.07009002,110230.0,110220.0,0.62712792]
[1761816242590,0.02578002,110230.0,110220.0,1.50021244]
[1761816242896,0.02578002,110230.0,110220.0,1.86101244]
[1761816243093,0.02578002,110230.0,110220.0,1.15101244]
[1761816243295,0.02578002,110230.0,110220.0,1.39101244]
[1761816243689,0.15981396,110250.0,110240.0,0.1470669]
[1761816243895,0.18789942,110250.0,110240.0,0.62443142]
[1761816244091,0.09090556,110250.0,110240.0,0.90751594]
[1761816244294,0.0217921,110250.0,110240.0,0.78751594]
[1761816244692,0.0217921,110250.0,110240.0,0.90751594]
[1761816244895,0.0217921,110250.0,110240.0,0.90851594]
[1761816245199,0.0287921,110250.0,110240.0,0.90851594]
[1761816245399,0.007,110250.0,110240.0,0.90851594]
[1761816245992,0.65954022,110260.0,110250.0,0.05636]
[1761816246195,0.6813219,110260.0,110250.0,0.21944452]
[1761816246392,0.68761526,110260.0,110250.0,0.21944452]
[1761816246800,0.52453074,110260.0,110250.0,0.31014322]
[1761816246998,0.68761526,110260.0,110250.0,0.31014322]
[1761816247593,0.68761526,110260.0,110250.0,0.22848499]
[1761816248004,0.52453074,110260.0,110250.0,0.22848499]
[1761816248202,0.68761526,110260.0,110250.0,0.22848499]
[1761816248599,0.52453074,110260.0,110250.0,0.31918369]
[1761816248805,0.69161526,110260.0,110250.0,0.32018369]
[1761816249005,0.52853074,110260.0,110250.0,0.15709917]
[1761816249207,0.69161526,110260.0,110250.0,0.32018369]
[1761816249505,0.69161526,110260.0,110250.0,0.15709917]
[1761816249701,0.69161526,110260.0,110250.0,0.32018369]
[1761816250207,0.66983358,110260.0,110250.0,0.32018369]
[1761816250507,0.30903358,110260.0,110250.0,0.32018369]
[1761816251202,0.66983358,110260.0,110250.0,0.22948499]
[1761816251601,0.66983358,110260.0,110250.0,0.06640047]
[1761816251996,0.66983358,110260.0,110250.0,0.15709917]
[1761816253005,0.66983358,110260.0,110250.0,0.32018369]
[1761816253205,0.50674906,110260.0,110250.0,0.32018369]
[1761816253504,0.66983358,110260.0,110250.0,0.32018369]
[1761816255807,0.66983358,110260.0,110250.0,0.15709917]
[1761816256008,0.66983358,110260.0,110250.0,0.32018369]
[1761816257013,0.66354022,110260.0,110250.0,0.32018369]
[1761816257712,0.5004557,110260.0,110250.0,0.32018369]
[1761816258214,0.66354022,110260.0,110250.0,0.32018369]
[1761816258506,0.5004557,110260.0,110250.0,0.32018369]
[1761816259402,0.66354022,110260.0,110250.0,0.15709917]
[1761816259602,0.5004557,110260.0,110250.0,0.32018369]
[1761816259799,0.66983358,110260.0,110250.0,0.12236917]
[1761816260106,0.85461114,110260.0,110250.0,0.38113047]
[1761816260316,0.85461114,110260.0,110250.0,0.15766917]
[1761816260704,0.69152662,110260.0,110250.0,0.15766917]
[1761816261011,0.5284421,110260.0,110250.0,0.15766917]
[1761816261219,0.69152662,110260.0,110250.0,0.15766917]
[1761816261409,0.5284421,110260.0,110250.0,0.15766917]
[1761816261609,0.69152662,110260.0,110250.0,0.1486287]
[1761816262008,0.69152662,110260.0,110250.0,0.06683012]
[1761816262205,0.69152662,110260.0,110250.0,0.00990012]
[1761816262206,0.85461114,110260.0,110250.0,0.00990012]
[1761816262412,1.16877114,110260.0,110250.0,0.001]
[1761816263010,1.77149114,110260.0,110250.0,0.001]
[1761816263214,0.1432469,110240.0,110230.0,0.1341329]
[1761816263414,0.4757093,110240.0,110230.0,0.1341329]
[1761816263807,0.31262478,110240.0,110230.0,0.1473829]
[1761816264118,0.31262478,110240.0,110230.0,0.05667]
[1761816264616,0.62674478,110240.0,110230.0,0.05667]
[1761816264816,0.62774478,110240.0,110230.0,0.05867]
[1761816265514,0.62774478,110240.0,110230.0,0.002]
[1761816265515,1.1516293,110240.0,110230.0,0.002]
[1761816266219,1.1516293,110240.0,110230.0,0.02493]
[1761816266519,1.1516293,110240.0,110230.0,0.04703]
[1761816266714,0.98854478,110240.0,110230.0,0.04703]
[1761816267414,0.8089069,110240.0,110230.0,0.31351852]
[1761816267718,0.8089069,110240.0,110230.0,0.22279452]
[1761816268016,0.4947869,110240.0,110230.0,0.31351882]
[1761816269409,0.4947869,110240.0,110230.0,0.05971]
[1761816269708,0.66416478,110240.0,110230.0,0.02493]
[1761816269911,0.67442478,110240.0,110230.0,0.002]
[1761816270116,0.67442478,110240.0,110230.0,0.02493]
[1761816270418,0.67442478,110240.0,110230.0,0.04703]
[1761816272310,0.66416478,110240.0,110230.0,0.05971]
[1761816272715,0.66416478,110240.0,110230.0,0.18801452]
[1761816272916,0.68591042,110240.0,110230.0,0.18801452]
[1761816273318,0.68591042,110240.0,110230.0,0.21011452]
[1761816273720,0.68591042,110240.0,110230.0,0.22279452]
[1761816274024,0.432119,110240.0,110230.0,0.31351912]
[1761816274717,0.51654194,110240.0,110230.0,0.31351912]
[1761816275321,0.5228354,110240.0,110230.0,0.1504346]
[1761816275718,0.51654204,110240.0,110230.0,0.31351912]
[1761816276315,0.5228354,110240.0,110230.0,0.31351912]
[1761816276522,0.51654204,110240.0,110230.0,0.31351912]
[1761816277317,0.40408,110240.0,110230.0,0.31351912]
[1761816277712,0.02205,110240.0,110230.0,0.31351912]
[1761816278017,0.001,110240.0,110230.0,0.67431912]
[1761816278617,0.001,110240.0,110230.0,0.80431912]
[1761816279121,0.001,110240.0,110230.0,1.27431912]
[1761816279324,0.02301,110240.0,110230.0,1.14740364]
[1761816279623,0.04627,110240.0,110230.0,0.77431912]
[1761816279824,0.001,110240.0,110230.0,0.77431912]
[1761816280321,0.001,110240.0,110230.0,0.93740364]
[1761816282226,0.001,110240.0,110230.0,0.67431912]
[1761816282431,0.61458822,110260.0,110250.0,0.05771]
[1761816282616,0.68161259,110260.0,110250.0,0.05771]
[1761816282924,0.68790595,110260.0,110250.0,0.05771]
[1761816283124,0.52482143,110260.0,110250.0,0.04503]
[1761816283320,0.68790595,110260.0,110250.0,0.04503]
[1761816284021,0.64263595,110260.0,110250.0,0.16308452]
[1761816284426,0.80772047,110260.0,110250.0,0.001]
[1761816285018,0.64463595,110260.0,110250.0,0.001]
[1761816285521,0.48155143,110260.0,110250.0,0.001]
[1761816285726,0.80772047,110260.0,110250.0,0.001]
[1761816286119,0.80772047,110260.0,110250.0,0.16408452]
[1761816286120,0.95875595,110260.0,110250.0,0.16408452]
[1761816287130,0.48155143,110260.0,110250.0,0.16408452]
[1761816287331,0.95875595,110260.0,110250.0,0.16408452]
[1761816288331,0.95875595,110260.0,110250.0,0.25479102]
[1761816288533,0.79566593,110260.0,110250.0,0.25479102]
[1761816288737,0.95875045,110260.0,110250.0,0.25479102]
[1761816289231,0.48154593,110260.0,110250.0,0.25479102]
[1761816290429,0.64463045,110260.0,110250.0,0.001]
[1761816290629,0.64463045,110260.0,110250.0,0.16408452]
[1761816290827,0.64463045,110260.0,110250.0,0.25479092]
[1761816292334,0.64463045,110260.0,110250.0,0.16408452]
[1761816293434,0.48154593,110260.0,110250.0,0.001]
[1761816293639,0.48154593,110260.0,110250.0,0.0917037]
[1761816295035,0.12074593,110260.0,110250.0,0.0917037]
[1761816295333,0.03004773,110260.0,110250.0,0.36467445]
[1761816295527,0.02375437,110260.0,110250.0,0.36467445]
[1761816295729,0.02375437,110260.0,110250.0,0.49467445]
[1761816296427,0.02375437,110260.0,110250.0,1.0184452]
[1761816296834,0.002,110260.0,110250.0,1.6211652]
[1761816297632,0.002,110260.0,110250.0,1.6184452]
[1761816298329,0.002,110260.0,110250.0,1.0184452]
[1761816300137,0.002,110260.0,110250.0,1.6211652]
[1761816300337,0.02416513,110280.0,110270.0,0.0906872]
[1761816300527,0.02804014,110280.0,110270.0,0.56769795]
[1761816300727,0.02804014,110280.0,110270.0,0.69769795]
[1761816300927,0.02804014,110280.0,110270.0,0.4047272]
[1761816301133,0.02804014,110280.0,110270.0,0.56769795]
[1761816301434,0.02804014,110280.0,110270.0,0.56869795]
[1761816301636,0.03304014,110280.0,110270.0,0.56869795]
[1761816301837,0.03304014,110280.0,110270.0,0.70869795]
[1761816302038,0.03304014,110280.0,110270.0,0.56869795]
[1761816302639,0.03304014,110280.0,110270.0,0.6877922]
[1761816303138,0.03304014,110280.0,110270.0,0.5777922]
[1761816303344,0.03304014,110280.0,110270.0,0.8577922]
[1761816303535,0.03304014,110280.0,110270.0,0.7077922]
[1761816303734,0.03304014,110280.0,110270.0,0.41482145]
[1761816304037,0.12371914,110280.0,110270.0,0.5777922]
[1761816304442,0.48451914,110280.0,110270.0,0.5777922]
[1761816304744,0.50868427,110280.0,110270.0,0.41482145]
[1761816305444,0.50868427,110280.0,110270.0,0.32413425]
[1761816305640,0.05720527,110280.0,110270.0,0.5777919]
[1761816305940,0.03304014,110280.0,110270.0,0.5777919]
[1761816306644,0.03304014,110280.0,110270.0,0.8977919]
[1761816306645,0.02674678,110280.0,110270.0,0.8977919]
[1761816308949,0.02674678,110280.0,110270.0,0.73482115]
[1761816309143,0.02674678,110280.0,110270.0,0.8977919]
[1761816309440,0.02674678,110280.0,110270.0,1.42156265]
[1761816309645,0.02674678,110280.0,110270.0,1.42428265]
[1761816310244,0.02416513,110300.0,110290.0,0.0906704]
[1761816310445,0.00629336,110300.0,110290.0,0.71760115]
[1761816311541,0.00629336,110300.0,110290.0,1.21840115]
[1761816311740,0.00829336,110300.0,110290.0,1.21840115]
[1761816315545,0.3608,110330.0,110310.0,0.0906505]
[1761816315749,0.00495017,110320.0,110310.0,0.3608]
[1761816315954,0.36575017,110320.0,110310.0,0.31392]
[1761816316660,0.36575017,110320.0,110310.0,0.5545737]
[1761816316850,0.36575017,110320.0,110310.0,0.71754445]
[1761816317448,0.36875017,110320.0,110310.0,0.71754445]
[1761816317949,0.00795017,110320.0,110310.0,1.07834445]
[1761816318350,0.003,110320.0,110310.0,1.3940352]
[1761816318551,0.003,110320.0,110310.0,1.3913152]
[1761816319152,0.003,110320.0,110310.0,1.4052352]
[1761816319853,0.003,110320.0,110310.0,1.4079552]
[1761816320046,0.00162099,110320.0,110310.0,1.4079552]
[1761816320354,0.4514211,110350.0,110340.0,0.01392]
[1761816320555,0.4514211,110350.0,110340.0,0.17689075]
[1761816320755,0.45637127,110350.0,110340.0,0.17689075]
[1761816321059,0.36575017,110350.0,110340.0,0.17689075]
[1761816321754,0.37075017,110350.0,110340.0,0.17689075]
[1761816322054,0.46137107,110350.0,110340.0,0.17689075]
[1761816322255,0.48289852,110350.0,110340.0,0.17689075]
[1761816322455,0.46137107,110350.0,110340.0,0.17689075]
[1761816322655,0.46137107,110350.0,110340.0,0.01392]
[1761816322958,0.48290396,110350.0,110340.0,0.17689075]
[1761816323257,0.46137107,110350.0,110340.0,1.67689075]
[1761816324148,0.46137107,110350.0,110340.0,1.68572263]
[1761816324446,0.37075017,110350.0,110340.0,1.77635173]
[1761816324755,0.005,110350.0,110340.0,2.06932248]
[1761816325855,0.005,110350.0,110340.0,2.60012248]
[1761816327350,0.005,110350.0,110340.0,2.60284248]
[1761816327662,0.3608,110370.0,110360.0,0.01276]
[1761816327851,0.38229893,110370.0,110360.0,0.17573075]
[1761816328157,0.3872491,110370.0,110360.0,0.17573075]
[1761816328353,0.3872491,110370.0,110360.0,0.30573075]
[1761816328554,0.0264491,110370.0,110360.0,0.66653075]
[1761816329448,0.02149893,110370.0,110360.0,0.66653075]
[1761816329655,0.02649893,110370.0,110360.0,0.75714345]
[1761816330155,0.02149893,110370.0,110360.0,0.75714345]
[1761816330558,0.02149893,110370.0,110360.0,0.91714345]
[1761816331662,0.0264491,110370.0,110360.0,0.53653075]
[1761816331862,0.0264491,110370.0,110360.0,0.85033075]
[1761816332861,0.00495017,110370.0,110360.0,0.85333075]
[1761816333860,0.00495017,110370.0,110360.0,0.69036]
[1761816334062,0.00495017,110370.0,110360.0,0.85333075]
[1761816335254,0.02635843,110370.0,110360.0,0.85333075]
[1761816335757,0.02635843,110370.0,110360.0,0.85733075]
[1761816335955,0.02140826,110370.0,110360.0,1.19794345]
[1761816336156,0.02140826,110370.0,110360.0,1.19094345]
[1761816336362,0.3608,110380.0,110370.0,0.01276]
[1761816336567,0.38221447,110380.0,110370.0,0.17573075]
[1761816336759,0.38716464,110380.0,110370.0,0.17573075]
[1761816337161,0.38716464,110380.0,110370.0,0.01276]
[1761816338363,0.56106539,110380.0,110360.0,0.37756]
[1761816338668,0.37668017,110370.0,110350.0,0.48945075]
[1761816338866,0.00295017,110360.0,110350.0,0.48945075]
[1761816339164,0.00295017,110360.0,110350.0,0.94087165]
[1761816339468,0.3608,110370.0,110360.0,0.01276]
[1761816339655,0.38224839,110370.0,110360.0,0.17573075]
[1761816340050,0.38519856,110370.0,110360.0,0.17573075]
[1761816340460,0.38519856,110370.0,110360.0,0.18173075]
[1761816341857,0.01093,110360.0,110340.0,2.36024263]
[1761816342068,0.02144839,110360.0,110350.0,0.01276]
[1761816342864,0.02144839,110360.0,110350.0,0.17573075]
[1761816343667,0.02144839,110360.0,110350.0,0.17773075]
[1761816345270,0.02144839,110360.0,110350.0,0.01476]
[1761816345664,0.02144839,110360.0,110350.0,0.17773075]
[1761816346770,0.02144839,110360.0,110350.0,0.17673075]
[1761816349373,0.02144839,110360.0,110350.0,0.52735165]
[1761816350271,0.02144839,110360.0,110350.0,0.55735165]
[1761816350774,0.02144839,110360.0,110350.0,0.91815165]
[1761816350968,0.02144839,110360.0,110350.0,0.92087165]
[1761816351168,0.02144839,110360.0,110350.0,0.91987165]
[1761816351471,0.02144839,110360.0,110350.0,0.91715165]
[1761816351864,0.02144839,110360.0,110350.0,0.91987165]
[1761816352871,0.02144839,110360.0,110350.0,0.91815165]
[1761816353377,0.02144839,110360.0,110350.0,0.66456]
[1761816353567,0.02144839,110360.0,110350.0,0.4901054]
[1761816354076,0.04561352,110360.0,110350.0,0.1763854]
[1761816354669,0.04561352,110360.0,110350.0,0.1753854]
[1761816354871,0.04661352,110360.0,110350.0,0.1753854]
[1761816355071,0.40741352,110360.0,110350.0,0.1753854]
[1761816357676,0.57003892,110360.0,110350.0,0.1753854]
[1761816357880,0.40741352,110360.0,110350.0,0.1753854]
[1761816366182,0.98324839,110360.0,110350.0,0.1753854]
[1761816366381,0.58096892,110360.0,110340.0,1.52275188]
[1761816366580,0.58096892,110360.0,110350.0,0.1626254]
[1761816367283,0.41834352,110360.0,110350.0,0.1626254]
[1761816367686,0.58096892,110360.0,110350.0,0.1626254]
[1761816368180,0.41834352,110360.0,110350.0,0.1755754]
[1761816368685,0.40741352,110360.0,110350.0,0.1755754]
[1761816369088,0.45039352,110360.0,110350.0,0.2199454]
[1761816369786,0.42622839,110360.0,110350.0,0.2199454]
[1761816372882,0.45039352,110360.0,110350.0,0.2199454]
[1761816373283,0.42622839,110360.0,110350.0,0.2199454]
[1761816373892,0.42622839,110360.0,110350.0,0.05732]
[1761816374188,0.42622839,110360.0,110350.0,0.2199454]
[1761816376776,0.04422,110350.0,110340.0,0.06678188]
[1761816376983,0.42646839,110350.0,110340.0,0.70575268]
[1761816378080,0.42646839,110350.0,110340.0,0.70675268]
[1761816381492,0.02144839,110350.0,110340.0,0.91738308]
[1761816382295,0.04422839,110350.0,110340.0,0.91738308]
[1761816382592,0.04422839,110350.0,110340.0,0.79738308]
[1761816382792,0.04422839,110350.0,110340.0,0.84602942]
[1761816383493,0.06566839,110350.0,110340.0,0.84602942]
[1761816383693,0.06566839,110350.0,110340.0,0.75539902]
[1761816383996,0.06566839,110350.0,110340.0,1.04539902]
[1761816384195,0.06566839,110350.0,110340.0,1.13602472]
[1761816386095,0.06566839,110350.0,110340.0,1.49682472]
[1761816387096,0.06566839,110350.0,110340.0,0.81077392]
[1761816387287,0.06566839,110350.0,110340.0,1.13602472]
[1761816390197,0.06566839,110350.0,110340.0,1.49682472]
[1761816392490,0.02144839,110350.0,110340.0,1.49682472]
[1761816392693,0.74286513,110370.0,110360.0,0.05755]
[1761816393000,0.76420856,110370.0,110360.0,0.3828008]
[1761816393190,0.74004343,110370.0,110360.0,0.3828008]
[1761816393794,0.42636343,110370.0,110360.0,0.3828008]
[1761816393992,0.42636343,110370.0,110360.0,0.2201754]
[1761816394190,0.42836343,110370.0,110360.0,0.3828008]
[1761816394788,0.42836343,110370.0,110360.0,0.05755]
[1761816394994,0.59098883,110370.0,110360.0,0.2201754]
[1761816396001,0.90466883,110370.0,110360.0,0.2201754]
[1761816396301,0.74204343,110370.0,110360.0,0.2201754]
[1761816396488,0.74204343,110370.0,110360.0,0.3107848]
[1761816397695,0.74204343,110370.0,110360.0,0.4734102]
[1761816397999,0.42836343,110370.0,110360.0,0.3107848]
[1761816398600,0.42836343,110370.0,110360.0,0.4734102]
[1761816399001,0.06756343,110370.0,110360.0,0.4734102]
[1761816399198,0.42836343,110370.0,110360.0,0.4734102]
[1761816399801,0.42636343,110370.0,110360.0,0.4734102]
[1761816400000,0.42736343,110370.0,110360.0,0.4734102]
[1761816400894,0.42736343,110370.0,110360.0,0.3107848]
[1761816401598,0.58998883,110370.0,110360.0,0.2201754]
[1761816402110,0.42736343,110370.0,110360.0,0.2201754]
[1761816402405,0.58998883,110370.0,110360.0,0.2201754]
[1761816402806,0.42736343,110370.0,110360.0,0.2201754]
[1761816403206,0.42736343,110370.0,110360.0,0.3107848]
[1761816404507,0.42736343,110370.0,110360.0,0.2201754]
[1761816404710,0.58998883,110370.0,110360.0,0.2201754]
[1761816404900,0.58998883,110370.0,110360.0,0.2066554]
[1761816405498,0.58998883,110370.0,110360.0,0.2195154]
[1761816406297,0.42736343,110370.0,110360.0,0.05689]
[1761816406499,0.42736343,110370.0,110360.0,0.2195154]
[1761816406695,0.06469343,110370.0,110360.0,0.7127502]
[1761816406903,0.06469343,110370.0,110360.0,0.4727502]
[1761816407104,0.06469343,110370.0,110360.0,0.5827502]
[1761816407305,0.06469343,110370.0,110360.0,0.7627502]
[1761816408209,0.06469343,110370.0,110360.0,0.5827502]
[1761816408613,0.58811883,110370.0,110360.0,0.2195154]
[1761816408814,0.42549343,110370.0,110360.0,0.2195154]
[1761816409310,0.58811883,110370.0,110360.0,0.2195154]
[1761816409510,0.58811883,110370.0,110360.0,0.05689]
[1761816409820,0.58811883,110370.0,110360.0,0.2195154]
[1761816410407,0.42549343,110370.0,110360.0,0.3821408]
[1761816410604,0.42549343,110370.0,110360.0,0.7427502]
[1761816410808,0.42549343,110370.0,110360.0,0.4727502]
[1761816411415,0.38314343,110370.0,110360.0,0.4727502]
[1761816411615,0.02234343,110370.0,110360.0,0.6027502]
[1761816411817,0.02234343,110370.0,110360.0,0.9635502]
[1761816412216,0.06469343,110370.0,110360.0,0.9635502]
[1761816412419,0.06469343,110370.0,110360.0,0.5121408]
[1761816412920,0.06469343,110370.0,110360.0,0.2195154]
[1761816413721,0.22731883,110370.0,110360.0,0.29293311]
[1761816413923,0.08885856,110370.0,110360.0,0.2195154]
[1761816414926,0.06469343,110370.0,110360.0,0.2195154]
[1761816415319,0.08885856,110370.0,110360.0,0.05689]
[1761816415721,0.06469343,110370.0,110360.0,0.05689]
[1761816416117,0.44965856,110370.0,110360.0,0.05689]
[1761816417524,0.44965856,110370.0,110360.0,0.12922782]
[1761816418226,0.44965856,110370.0,110360.0,0.29187216]
[1761816418824,0.44965856,110370.0,110360.0,0.21953434]
[1761816419019,0.44965856,110370.0,110360.0,0.05689]
[1761816419823,0.44965856,110370.0,110360.0,0.04403]
[1761816420023,0.44965856,110370.0,110360.0,0.05689]
[1761816420727,0.44974982,110370.0,110360.0,0.05689]
[1761816420925,0.76334982,110370.0,110360.0,0.05689]
[1761816422927,0.73912582,110370.0,110360.0,0.05689]
[1761816423126,0.76334982,110370.0,110350.0,0.13954983]
[1761816423328,0.40315,110360.0,110350.0,0.35791417]
[1761816423531,0.42452582,110360.0,110350.0,0.35791417]
[1761816425032,0.42452582,110360.0,110350.0,0.10465383]
[1761816425231,0.42452582,110360.0,110350.0,0.26829817]
[1761816425630,0.42452582,110360.0,110350.0,0.47891577]
[1761816425826,0.42452582,110360.0,110350.0,0.35891577]
[1761816426227,0.42452582,110360.0,110350.0,0.47891577]
[1761816426532,0.06372582,110360.0,110350.0,0.47891577]
[1761816427430,0.06372582,110360.0,110350.0,0.38829817]
[1761816427620,0.06372582,110360.0,110350.0,0.47891577]
[1761816427824,0.37728582,110360.0,110350.0,0.31627143]
[1761816428027,0.37728582,110360.0,110350.0,0.47891577]
[1761816428636,0.06372582,110360.0,110350.0,0.47891577]
[1761816432138,0.06372582,110360.0,110350.0,0.67891577]
[1761816433436,0.06372582,110360.0,110350.0,1.03971577]
[1761816433634,0.02137582,110360.0,110350.0,1.03971577]
[1761816433831,0.35691,110370.0,110360.0,0.1471594]
[1761816434028,0.37829393,110370.0,110360.0,0.41980374]
[1761816434233,0.06473393,110370.0,110360.0,0.41980374]
[1761816434527,0.02138393,110370.0,110360.0,0.54980374]
[1761816434731,0.02138393,110370.0,110360.0,0.86336374]
[1761816434934,0.04400393,110370.0,110360.0,0.86336374]
[1761816435329,0.04500393,110370.0,110360.0,0.86336374]
[1761816435734,0.04500393,110370.0,110360.0,0.91229757]
[1761816435930,0.04500393,110370.0,110360.0,0.98354089]
[1761816436129,0.04500393,110370.0,110360.0,0.91229757]
[1761816436831,0.06608393,110370.0,110360.0,0.61965323]
[1761816437030,0.06608393,110370.0,110360.0,0.78229757]
[1761816438135,0.06608393,110370.0,110360.0,0.93229757]
[1761816438439,0.02238393,110370.0,110360.0,0.93229757]
[1761816438627,0.02238393,110370.0,110360.0,1.29309757]
[1761816440439,0.02238393,110370.0,110360.0,1.36431202]
[1761816440634,0.02238393,110370.0,110360.0,1.31537819]
[1761816444644,0.001,110370.0,110360.0,1.36431202]
[1761816445235,0.001,110370.0,110360.0,1.36703202]
[1761816446039,0.001,110370.0,110360.0,1.31537819]
[1761816446938,0.001,110370.0,110360.0,1.36424139]
[1761816449847,0.001,110370.0,110360.0,1.36696139]
[1761816450145,0.001,110370.0,110360.0,1.36424139]
[1761816450344,0.001,110370.0,110360.0,1.36696139]
[1761816451443,0.001,110370.0,110360.0,1.48074253]
[1761816451648,0.001,110370.0,110360.0,2.12956811]
[1761816451844,0.001,110370.0,110360.0,2.08074253]
[1761816453158,0.40385,110400.0,110390.0,0.1462748]
[1761816453342,0.425143,110400.0,110390.0,0.91239914]
[1761816453746,0.064343,110400.0,110390.0,1.27319914]
[1761816454443,0.064343,110400.0,110390.0,0.91239914]
[1761816455050,0.042803,110400.0,110390.0,0.91239914]
[1761816455251,0.026293,110400.0,110390.0,0.91239914]
[1761816455549,0.047803,110400.0,110390.0,0.91239914]
[1761816455746,0.042803,110400.0,110390.0,0.92247477]
[1761816456053,0.428074,110420.0,110410.0,0.05569]
[1761816456247,0.44911916,110420.0,110410.0,0.21833434]
[1761816456551,0.44911916,110420.0,110410.0,0.53177434]
[1761816457258,0.44911916,110420.0,110410.0,0.62234274]